[Event "FIDE WCCC Open-10 2024"]
[Site "Montesilvano"]
[Date "2024.11.18"]
[Round "2.5"]
[White "Jani, Aakash"]
[Black "Zuo, Junyu"]
[Result "0-1"]
[ECO "B44"]
[WhiteElo "1810"]
[BlackElo "2120"]
[PlyCount "58"]
[EventDate "2024.11.18"]
[EventType "swiss"]
[EventCountry "ITA"]
[TimeControl "5400+30"]

1. e4 {[%emt 1:31:00]} c5 {[%emt 0:00:24]} 2. Nf3 {[%emt 0:00:00]} e6 {[%emt 0:00:16]} 3. d4 {[%emt 0:00:00]} cxd4 {[%emt 0:00:49]} 4. Nxd4 {[%emt 0:01:30]} Nc6 5. c4 {[%emt 0:00:00]} Nf6 {[%emt 0:02:21]} 6. Nc3 {[%emt 0:00:00]} Bb4 {[%emt 0:02:21]} 7. f3 {[%emt 0:00:00]} O-O {[%emt 0:01:52]} 8. Be2 {[%emt 0:00:00]} Bxc3+ {[%emt 0:05:40]} 9. bxc3 {[%emt 0:00:00]} d5 {[%emt 0:00:51]} 10. cxd5 {[%emt 0:00:00]} exd5 {[%emt 0:00:54]} 11. Nxc6 {[%emt 0:00:00]} bxc6 {[%emt 0:01:15]} 12. Bg5 {[%emt 0:00:00]} h6 {[%emt 0:10:48]} 13. Bxf6 {[%emt 0:00:00]} Qxf6 {[%emt 0:01:13]} 14. Qd4 {[%emt 0:00:00]} Qh4+ {[%emt 0:12:56]} 15. g3 {[%emt 0:00:00]} Qh3 {[%emt 0:01:56]} 16. exd5 {[%emt 0:00:00]} Re8 {[%emt 0:02:24]} 17. Kf2 {[%emt 0:00:00]} Rxe2+ {[%emt 0:31:24]} 18. Kxe2 {[%emt 0:00:00]} Qg2+ {[%emt 0:00:03]} 19. Ke3 {[%emt 0:00:00]} Ba6 {[%emt 0:02:09]} 20. Qe5 {[%emt 0:00:00]} Qe2+ {[%emt 0:00:44]} 21. Kf4 {[%emt 0:00:00]} g5+ {[%emt 0:01:02]} 22. Kf5 {[%emt 0:00:00]} Qxf3+ {[%emt 0:00:48]} 23. Qf4 {[%emt 0:00:00]} gxf4 {[%emt 0:00:06]} 24. gxf4 {[%emt 0:00:00]} Bd3+ {[%emt 0:00:06]} 25. Kf6 {[%emt 0:00:00]} Qxf4+ {[%emt 0:00:08]} 26. Ke7 {[%emt 0:00:00]} Qe5+ {[%emt 0:00:08]} 27. Kd7 {[%emt 0:00:00]} Qxd5+ {[%emt 0:00:16]} 28. Kc7 {[%emt 0:00:00]} Qd8+ {[%emt 0:00:15]} 29. Kb7 {[%emt 0:00:00]} Qc8# {[%emt 0:00:06]} 0-1

[Event "FIDE WCCC Open-10 2024"]
[Site "Montesilvano"]
[Date "2024.11.18"]
[Round "2.5"]
[White "Roth, Elai"]
[Black "Yevsieiev, Yaroslav"]
[Result "1/2-1/2"]
[ECO "C56"]
[WhiteElo "1577"]
[BlackElo "1706"]
[PlyCount "91"]
[EventDate "2024.11.18"]
[EventType "swiss"]
[EventCountry "ITA"]
[TimeControl "5400+30"]

1. e4 {[%emt 0:00:30]} e5 {[%emt 0:00:30]} 2. Nf3 {[%emt 0:00:30]} Nc6 {[%emt 0:00:30]} 3. Bc4 {[%emt 0:00:30]} Nf6 {[%emt 0:00:30]} 4. d4 {[%emt 0:00:30]} exd4 {[%emt 0:00:30]} 5. O-O {[%emt 0:00:30]} Bc5 {[%emt 0:00:30]} 6. e5 {[%emt 0:00:30]} d5 {[%emt 0:00:30]} 7. Bb5 {[%emt 0:00:30]} Ne4 {[%emt 0:00:30]} 8. Nxd4 {[%emt 0:00:30]} Bd7 {[%emt 0:00:30]} 9. Nxc6 {[%emt 0:00:30]} bxc6 {[%emt 0:00:30]} 10. Bd3 {[%emt 0:00:30]} Qh4 {[%emt 0:00:30]} 11. Bxe4 {[%emt 0:00:30]} Qxe4 {[%emt 0:00:30]} 12. Re1 {[%emt 0:00:30]} Qg6 {[%emt 0:00:30]} 13. Be3 {[%emt 0:00:30]} Bg4 {[%emt 0:00:30]} 14. Qd3 {[%emt 0:00:30]} Bf5 {[%emt 0:00:30]} 15. Qa6 {[%emt 0:00:30]} Be4 {[%emt 0:00:30]} 16. Qf1 {[%emt 0:00:30]} d4 {[%emt 0:00:30]} 17. Bd2 {[%emt 0:00:30]} Bxc2 {[%emt 0:00:30]} 18. g3 {[%emt 0:00:30]} h5 {[%emt 0:00:30]} 19. Qg2 {[%emt 0:00:30]} Rb8 {[%emt 0:00:30]} 20. b3 {[%emt 0:00:30]} O-O {[%emt 0:00:30]} 21. Ba5 {[%emt 0:00:30]} d3 {[%emt 0:00:30]} 22. Bc3 {[%emt 0:00:30]} Rfd8 {[%emt 0:00:30]} 23. Nd2 {[%emt 0:00:30]} a5 {[%emt 0:00:30]} 24. Re4 {[%emt 0:00:30]} Ra8 {[%emt 0:00:30]} 25. Rc4 {[%emt 0:00:30]} Bb4 {[%emt 0:00:30]} 26. Bxb4 {[%emt 0:00:30]} axb4 {[%emt 0:00:30]} 27. Rxc6 {[%emt 0:00:30]} Qg4 {[%emt 0:00:30]} 28. Rc4 {[%emt 0:00:30]} Qe2 {[%emt 0:00:30]} 29. f4 {[%emt 0:00:30]} Rxa2 {[%emt 0:00:30]} 30. Rxa2 {[%emt 0:00:30]} Qe1+ {[%emt 0:00:30]} 31. Nf1 {[%emt 0:00:30]} Bxb3 {[%emt 0:00:30]} 32. Ra8 {[%emt 0:00:30]} Bxc4 {[%emt 0:00:30]} 33. Rxd8+ {[%emt 0:00:30]} Kh7 {[%emt 0:00:30]} 34. Qd2 {[%emt 0:00:30]} Qa1 {[%emt 0:00:30]} 35. Qxb4 {[%emt 0:00:30]} Ba6 {[%emt 0:00:30]} 36. Qd2 {[%emt 0:00:30]} Qb1 {[%emt 0:00:30]} 37. Rd7 {[%emt 0:00:30]} c5 {[%emt 0:00:30]} 38. Qa5 {[%emt 0:00:30]} Bc8 {[%emt 0:00:30]} 39. Qc7 {[%emt 0:00:30]} Bxd7 {[%emt 0:00:30]} 40. Qxd7 {[%emt 0:00:30]} c4 {[%emt 0:00:30]} 41. Qd4 {[%emt 0:00:30]} g6 {[%emt 0:00:30]} 42. Qxc4 {[%emt 0:00:30]} d2 {[%emt 0:00:30]} 43. Qxf7+ {[%emt 0:00:30]} Kh6 {[%emt 0:00:30]} 44. Qf8+ {[%emt 0:00:30]} Kh7 {[%emt 0:00:30]} 45. Qf7+ {[%emt 0:00:30]} Kh8 {[%emt 0:00:30]} 46. Qf8+ {[%emt 0:00:30]} 1/2-1/2

[Event "FIDE WCCC Open-10 2024"]
[Site "Montesilvano"]
[Date "2024.11.18"]
[Round "2.6"]
[White "Ramesan, Raunak Amit"]
[Black "Ilko-Toth, Andras"]
[Result "1-0"]
[ECO "B12"]
[WhiteElo "1802"]
[BlackElo "2115"]
[PlyCount "73"]
[EventDate "2024.11.18"]
[EventType "swiss"]
[EventCountry "ITA"]
[TimeControl "5400+30"]

1. e4 {[%emt 0:00:06]} c6 {[%emt 0:00:11]} 2. d4 {[%emt 0:00:05]} d5 {[%emt 0:00:04]} 3. e5 {[%emt 0:00:05]} c5 {[%emt 0:00:04]} 4. Nf3 {[%emt 0:00:07]} cxd4 {[%emt 0:00:24]} 5. Nxd4 {[%emt 0:00:08]} Nc6 {[%emt 0:00:09]} 6. Nxc6 {[%emt 0:00:09]} bxc6 {[%emt 0:00:07]} 7. Bd3 {[%emt 0:00:21]} e6 {[%emt 0:01:21]} 8. O-O {[%emt 0:01:35]} Ne7 {[%emt 0:03:09]} 9. Re1 {[%emt 0:01:28]} Ng6 {[%emt 0:06:06]} 10. c3 {[%emt 0:04:04]} Be7 {[%emt 0:10:03]} 11. Nd2 {[%emt 0:01:42]} O-O {[%emt 0:08:12]} 12. Nf3 {[%emt 0:02:23]} a5 {[%emt 0:09:36]} 13. Qe2 {[%emt 0:07:20]} Qb6 {[%emt 0:09:08]} 14. Be3 {[%emt 0:08:00]} c5 {[%emt 0:02:34]} 15. h4 {[%emt 0:08:06]} Qc7 {[%emt 0:12:01]} 16. Bd2 {[%emt 0:09:41]} Rd8 {[%emt 0:04:50]} 17. Ng5 {[%emt 0:07:02]} Bxg5 {[%emt 0:09:30]} 18. Bxg5 {[%emt 0:00:47]} Rf8 {[%emt 0:00:08]} 19. h5 {[%emt 0:02:52]} Nxe5 {[%emt 0:02:19]} 20. h6 {[%emt 0:08:55]} Nxd3 {[%emt 0:04:45]} 21. hxg7 {[%emt 0:08:56]} Kxg7 {[%emt 0:00:50]} 22. Qh5 {[%emt 0:06:00]} Kg8 {[%emt 0:05:08]} 23. Re3 {[%emt 0:05:40]} f6 {[%emt 0:04:20]} 24. Bh6 {[%emt 0:01:33]} Qf7 {[%emt 0:00:34]} 25. Qg4+ {[%emt 0:05:27]} Kh8 {[%emt 0:00:07]} 26. Bxf8 {[%emt 0:01:09]} Ne5 {[%emt 0:00:11]} 27. Rxe5 {[%emt 0:00:36]} fxe5 {[%emt 0:00:07]} 28. Bd6 {[%emt 0:01:26]} Qf5 {[%emt 0:04:01]} 29. Qg3 {[%emt 0:00:51]} Qg6 {[%emt 0:00:22]} 30. Qxe5+ {[%emt 0:00:33]} Kg8 {[%emt 0:00:42]} 31. Re1 {[%emt 0:00:45]} Qg7 {[%emt 0:01:13]} 32. Qh5 {[%emt 0:02:00]} Qg6 {[%emt 0:00:20]} 33. Qh4 {[%emt 0:00:59]} Ba6 {[%emt 0:01:35]} 34. Re3 {[%emt 0:00:42]} Qb1+ {[%emt 0:00:23]} 35. Kh2 {[%emt 0:00:22]} Bd3 {[%emt 0:00:08]} 36. Qf6 {[%emt 0:00:51]} Re8 {[%emt 0:00:38]} 37. Be5 {[%emt 0:00:50]} 1-0

[Event "FIDE WCCC Open-10 2024"]
[Site "Montesilvano"]
[Date "2024.11.18"]
[Round "2.7"]
[White "Zhu, Linxi"]
[Black "Mariani, Kim Paul"]
[Result "1-0"]
[ECO "C18"]
[WhiteElo "2100"]
[BlackElo "1814"]
[PlyCount "71"]
[EventDate "2024.11.18"]
[EventType "swiss"]
[EventCountry "ITA"]
[TimeControl "5400+30"]

1. e4 {[%emt 0:00:01]} e6 {[%emt 0:00:46]} 2. d4 {[%emt 0:00:07]} d5 {[%emt 0:00:12]} 3. Nc3 {[%emt 0:00:07]} Bb4 {[%emt 0:00:49]} 4. e5 {[%emt 0:00:17]} c5 {[%emt 0:01:03]} 5. a3 {[%emt 0:00:10]} Bxc3+ {[%emt 0:00:21]} 6. bxc3 {[%emt 0:00:07]} Ne7 {[%emt 0:00:16]} 7. Qg4 {[%emt 0:02:02]} cxd4 {[%emt 0:00:44]} 8. Qxg7 {[%emt 0:02:22]} Rg8 {[%emt 0:02:07]} 9. Qxh7 {[%emt 0:00:04]} Qc7 {[%emt 0:00:02]} 10. Qd3 {[%emt 0:01:06]} dxc3 {[%emt 0:00:39]} 11. Ne2 {[%emt 0:01:30]} Nbc6 {[%emt 0:05:22]} 12. f4 {[%emt 0:01:51]} Bd7 {[%emt 0:00:05]} 13. h4 {[%emt 0:03:51]} Nf5 {[%emt 0:02:34]} 14. h5 {[%emt 0:01:02]} O-O-O {[%emt 0:00:48]} 15. Rb1 {[%emt 0:02:37]} d4 {[%emt 0:02:33]} 16. h6 {[%emt 0:01:56]} Rg6 {[%emt 0:01:09]} 17. h7 {[%emt 0:01:10]} Rh8 {[%emt 0:00:35]} 18. Rh5 {[%emt 0:07:56]} Qa5 {[%emt 0:08:23]} 19. Rb5 {[%emt 0:16:08]} Qa4 {[%emt 0:01:27]} 20. Rh3 {[%emt 0:09:53]} a6 {[%emt 0:02:33]} 21. Rc5 {[%emt 0:00:56]} Rg7 {[%emt 0:07:17]} 22. Qe4 {[%emt 0:08:03]} b5 {[%emt 0:08:51]} 23. Rxc6+ {[%emt 0:00:34]} Bxc6 {[%emt 0:00:06]} 24. Qxc6+ {[%emt 0:00:05]} Kb8 {[%emt 0:00:58]} 25. Qb6+ {[%emt 0:00:10]} Kc8 {[%emt 0:00:03]} 26. Nxc3 {[%emt 0:04:52]} Qxc2 {[%emt 0:01:07]} 27. Qxa6+ {[%emt 0:05:56]} Kb8 {[%emt 0:02:04]} 28. Qb6+ {[%emt 0:01:26]} Kc8 {[%emt 0:00:18]} 29. Qa6+ {[%emt 0:00:07]} Kb8 {[%emt 0:00:06]} 30. Qxb5+ {[%emt 0:00:04]} Kc8 {[%emt 0:01:54]} 31. Bd2 {[%emt 0:04:59]} Ne3 {[%emt 0:02:26]} 32. Qc6+ {[%emt 0:02:46]} Kb8 {[%emt 0:00:17]} 33. Qb6+ {[%emt 0:00:12]} Ka8 {[%emt 0:00:58]} 34. Bb5 {[%emt 0:05:14]} Nxg2+ {[%emt 0:03:28]} 35. Kf1 {[%emt 0:00:06]} Ne3+ {[%emt 0:00:15]} 36. Rxe3 {[%emt 0:18:43]} 1-0

[Event "FIDE WCCC Open-10 2024"]
[Site "Montesilvano"]
[Date "2024.11.18"]
[Round "2.7"]
[White "Tenuun, Tseesuren"]
[Black "Rama, Federico"]
[Result "1-0"]
[ECO "B47"]
[WhiteElo "1702"]
[BlackElo "1564"]
[PlyCount "76"]
[EventDate "2024.11.18"]
[EventType "swiss"]
[EventCountry "ITA"]
[TimeControl "5400+30"]

1. e4 {[%emt 0:00:02]} c5 {[%emt 0:00:04]} 2. Nf3 {[%emt 0:00:27]} e6 {[%emt 0:00:05]} 3. d4 {[%emt 0:00:17]} cxd4 {[%emt 0:00:07]} 4. Nxd4 {[%emt 0:00:07]} Nc6 {[%emt 0:00:06]} 5. Nc3 {[%emt 0:01:16]} a6 {[%emt 0:00:11]} 6. f4 {[%emt 0:00:40]} Qc7 {[%emt 0:00:38]} 7. Nxc6 {[%emt 0:02:23]} bxc6 {[%emt 0:00:15]} 8. Be3 {[%emt 0:02:21]} d5 {[%emt 0:01:29]} 9. Be2 {[%emt 0:01:42]} Bb7 {[%emt 0:02:55]} 10. O-O {[%emt 0:02:15]} Rd8 {[%emt 0:02:34]} 11. exd5 {[%emt 0:01:53]} cxd5 {[%emt 0:00:42]} 12. Qd4 {[%emt 0:01:02]} Nf6 {[%emt 0:02:39]} 13. Rfd1 {[%emt 0:07:32]} Bd6 {[%emt 0:02:39]} 14. Qa4+ {[%emt 0:04:11]} Qd7 {[%emt 0:01:50]} 15. Qa5 {[%emt 0:09:48]} Qc6 {[%emt 0:05:29]} 16. Nb5 {[%emt 0:10:48]} O-O {[%emt 0:07:34]} 17. Nxd6 {[%emt 0:01:31]} Rxd6 {[%emt 0:02:20]} 18. Bc5 {[%emt 0:02:50]} d4 {[%emt 0:00:37]} 19. Bf3 {[%emt 0:01:39]} Ne4 {[%emt 0:01:30]} 20. Bxd6 {[%emt 0:01:01]} Qxd6 {[%emt 0:00:21]} 21. Bxe4 {[%emt 0:00:31]} Bxe4 {[%emt 0:01:07]} 22. Qd2 {[%emt 0:01:32]} Qc5 {[%emt 0:05:46]} 23. Qxd4 {[%emt 0:02:40]} Qxc2 {[%emt 0:00:31]} 24. Rd2 {[%emt 0:00:22]} Qc6 {[%emt 0:01:56]} 25. Re1 {[%emt 0:00:53]} Bd5 {[%emt 0:02:11]} 26. b3 {[%emt 0:02:02]} h6 {[%emt 0:02:40]} 27. Re3 {[%emt 0:02:12]} g6 {[%emt 0:11:54]} 28. f5 {[%emt 0:00:40]} Qb5 {[%emt 0:09:51]} 29. Rh3 {[%emt 0:03:35]} h5 {[%emt 0:02:29]} 30. a4 {[%emt 0:05:15]} Qc6 {[%emt 0:07:13]} 31. Rc3 {[%emt 0:07:27]} Qd6 {[%emt 0:01:18]} 32. Rg3 {[%emt 0:05:29]} Qe7 {[%emt 0:01:44]} 33. fxg6 {[%emt 0:02:14]} fxg6 {[%emt 0:01:42]} 34. Rxg6+ {[%emt 0:00:46]} Kh7 {[%emt 0:01:25]} 35. Rg3 {[%emt 0:01:23]} Qf7 {[%emt 0:00:48]} 36. Rf2 {[%emt 0:00:23]} Qe7 {[%emt 0:00:48]} 37. Qd3+ {[%emt 0:00:23]} Kh8 {[%emt 0:00:36]} 38. Qg6 {[%emt 0:00:30]} Qa7 {[%emt 0:21:26]} 1-0

[Event "FIDE WCCC Open-10 2024"]
[Site "Montesilvano"]
[Date "2024.11.18"]
[Round "2.8"]
[White "Guntaka, Aayansh"]
[Black "Deepak Ambattu, Rithvik"]
[Result "1/2-1/2"]
[ECO "B90"]
[WhiteElo "1798"]
[BlackElo "2063"]
[PlyCount "66"]
[EventDate "2024.11.18"]
[EventType "swiss"]
[EventCountry "ITA"]
[TimeControl "5400+30"]

1. e4 {[%emt 0:00:03]} c5 {[%emt 0:00:08]} 2. Nf3 {[%emt 0:00:05]} d6 {[%emt 0:00:06]} 3. d4 {[%emt 0:00:04]} cxd4 {[%emt 0:00:06]} 4. Nxd4 {[%emt 0:00:06]} Nf6 {[%emt 0:00:04]} 5. Nc3 {[%emt 0:00:07]} a6 {[%emt 0:00:03]} 6. Rg1 {[%emt 0:00:06]} h5 {[%emt 0:06:15]} 7. h3 {[%emt 0:03:33]} e5 {[%emt 0:04:53]} 8. Nb3 {[%emt 0:00:09]} Be6 {[%emt 0:01:01]} 9. Be3 {[%emt 0:00:19]} Nc6 {[%emt 0:16:42]} 10. g4 {[%emt 0:14:01]} hxg4 {[%emt 0:01:00]} 11. hxg4 {[%emt 0:00:08]} d5 {[%emt 0:08:33]} 12. exd5 {[%emt 0:02:22]} Nxd5 {[%emt 0:00:12]} 13. Nxd5 {[%emt 0:01:20]} Qxd5 {[%emt 0:02:03]} 14. Qxd5 {[%emt 0:00:29]} Bxd5 {[%emt 0:00:10]} 15. O-O-O {[%emt 0:01:21]} O-O-O {[%emt 0:02:49]} 16. Bb6 {[%emt 0:00:31]} Rd7 {[%emt 0:01:56]} 17. g5 {[%emt 0:06:34]} f5 {[%emt 0:19:39]} 18. Be2 {[%emt 0:02:09]} Be7 {[%emt 0:01:10]} 19. Nc5 {[%emt 0:03:27]} Bxc5 {[%emt 0:02:29]} 20. Bxc5 {[%emt 0:01:23]} Rh2 {[%emt 0:02:13]} 21. g6 {[%emt 0:11:27]} Nd4 {[%emt 0:06:27]} 22. Bxd4 {[%emt 0:02:24]} exd4 {[%emt 0:00:08]} 23. Rxd4 {[%emt 0:00:08]} Rxf2 {[%emt 0:00:13]} 24. Bd3 {[%emt 0:01:14]} Be4 {[%emt 0:01:59]} 25. Rc4+ {[%emt 0:05:48]} Rc7 {[%emt 0:00:43]} 26. Rxc7+ {[%emt 0:01:38]} Kxc7 {[%emt 0:00:01]} 27. Bxe4 {[%emt 0:02:11]} fxe4 {[%emt 0:01:34]} 28. Rg4 {[%emt 0:01:36]} e3 {[%emt 0:03:55]} 29. Kd1 {[%emt 0:00:08]} Rd2+ {[%emt 0:05:53]} 30. Kc1 {[%emt 0:00:19]} Kd6 {[%emt 0:01:28]} 31. Rg3 {[%emt 0:01:11]} Re2 {[%emt 0:00:12]} 32. Kd1 {[%emt 0:00:09]} Rd2+ {[%emt 0:00:13]} 33. Kc1 {[%emt 0:00:08]} Re2 {[%emt 0:12:42]} 1/2-1/2

[Event "FIDE WCCC Open-10 2024"]
[Site "Montesilvano"]
[Date "2024.11.18"]
[Round "2.8"]
[White "Pierloot, Siebe"]
[Black "DAmato, Raffaele"]
[Result "0-1"]
[ECO "C01"]
[WhiteElo "1573"]
[BlackElo "1695"]
[PlyCount "128"]
[EventDate "2024.11.18"]
[EventType "swiss"]
[EventCountry "ITA"]
[TimeControl "5400+30"]

1. e4 {[%emt 0:00:02]} e6 {[%emt 0:00:01]} 2. d4 {[%emt 0:00:20]} d5 {[%emt 0:00:01]} 3. exd5 {[%emt 0:00:29]} exd5 {[%emt 0:00:07]} 4. Bd3 {[%emt 0:01:40]} Nf6 {[%emt 0:00:43]} 5. Ne2 {[%emt 0:03:15]} Bd6 {[%emt 0:01:40]} 6. Nbc3 {[%emt 0:01:14]} c6 {[%emt 0:01:30]} 7. Bg5 {[%emt 0:01:57]} Nbd7 {[%emt 0:02:26]} 8. O-O {[%emt 0:02:40]} O-O {[%emt 0:00:18]} 9. Re1 {[%emt 0:02:06]} h6 {[%emt 0:00:23]} 10. Bh4 {[%emt 0:00:48]} Bxh2+ {[%emt 0:00:59]} 11. Kxh2 {[%emt 0:02:11]} Ng4+ {[%emt 0:00:16]} 12. Kg3 {[%emt 0:03:16]} g5 {[%emt 0:01:27]} 13. Kxg4 {[%emt 0:12:00]} gxh4 {[%emt 0:02:36]} 14. Kh3 {[%emt 0:05:08]} Nf6+ {[%emt 0:05:45]} 15. Kh2 {[%emt 0:01:00]} Ng4+ {[%emt 0:00:39]} 16. Kg1 {[%emt 1:00:24]} Qd6 {[%emt 0:01:52]} 17. g3 {[%emt 0:00:00]} hxg3 {[%emt 0:00:59]} 18. Nxg3 {[%emt 0:00:00]} Qf6 {[%emt 0:00:56]} 19. Re2 {[%emt 0:00:00]} Qh4 {[%emt 0:01:06]} 20. f3 {[%emt 0:00:00]} Qxg3+ {[%emt 0:00:55]} 21. Rg2 {[%emt 0:00:00]} Qxg2+ {[%emt 0:00:17]} 22. Kxg2 {[%emt 0:00:00]} Ne3+ {[%emt 0:00:04]} 23. Kf2 {[%emt 0:00:00]} Nxd1+ {[%emt 0:00:11]} 24. Rxd1 {[%emt 0:00:00]} f5 {[%emt 0:00:49]} 25. Rg1+ {[%emt 0:00:00]} Kf7 {[%emt 0:00:40]} 26. a4 {[%emt 0:00:00]} Rg8 {[%emt 0:02:06]} 27. Rxg8 {[%emt 0:00:00]} Kxg8 {[%emt 0:00:04]} 28. Kg3 {[%emt 0:00:00]} Bd7 {[%emt 0:00:43]} 29. Nd1 {[%emt 0:00:00]} Re8 {[%emt 0:00:37]} 30. Kf4 {[%emt 0:00:00]} Kf7 {[%emt 0:00:48]} 31. Ne3 {[%emt 0:00:00]} Kf6 {[%emt 0:00:57]} 32. Nxf5 {[%emt 0:00:00]} Bxf5 {[%emt 0:00:13]} 33. Bxf5 {[%emt 0:00:00]} Rg8 {[%emt 0:00:25]} 34. b3 {[%emt 0:00:00]} h5 {[%emt 0:00:27]} 35. Bh3 {[%emt 0:00:00]} a5 {[%emt 0:00:31]} 36. Bf1 {[%emt 0:00:00]} Rg1 {[%emt 0:01:02]} 37. Bh3 {[%emt 0:00:00]} Rc1 {[%emt 0:01:29]} 38. Bf5 {[%emt 0:00:00]} Rd1 {[%emt 0:01:07]} 39. Bd3 {[%emt 0:00:00]} h4 {[%emt 0:01:19]} 40. Kg4 {[%emt 0:00:00]} Rh1 {[%emt 0:00:17]} 41. f4 {[%emt 0:00:00]} Kg7 {[%emt 0:02:38]} 42. f5 {[%emt 0:00:00]} Kf6 {[%emt 0:00:40]} 43. Kf3 {[%emt 0:00:00]} Rg1 {[%emt 0:00:14]} 44. Kf2 {[%emt 0:00:00]} Rg5 {[%emt 0:00:11]} 45. Kf1 {[%emt 0:00:00]} Rxf5+ {[%emt 0:00:17]} 46. Bxf5 {[%emt 0:00:00]} Kxf5 {[%emt 0:00:18]} 47. Kg2 {[%emt 0:00:00]} Ke4 {[%emt 0:00:06]} 48. Kh3 {[%emt 0:00:00]} Kxd4 {[%emt 0:00:19]} 49. Kxh4 {[%emt 0:00:00]} Kc3 {[%emt 0:00:02]} 50. Kg5 {[%emt 0:00:00]} Kxc2 {[%emt 0:00:05]} 51. Kf4 {[%emt 0:00:00]} d4 {[%emt 0:00:04]} 52. Kf3 {[%emt 0:00:00]} d3 {[%emt 0:00:08]} 53. Ke3 {[%emt 0:00:00]} d2 {[%emt 0:00:12]} 54. b4 {[%emt 0:00:00]} axb4 {[%emt 0:00:06]} 55. a5 {[%emt 0:00:00]} d1=Q {[%emt 0:00:12]} 56. a6 {[%emt 0:00:00]} bxa6 {[%emt 0:00:10]} 57. Ke4 {[%emt 0:00:00]} Qd5+ {[%emt 0:00:06]} 58. Ke3 {[%emt 0:00:00]} b3 {[%emt 0:00:23]} 59. Ke2 {[%emt 0:00:00]} Qd4 {[%emt 0:00:08]} 60. Kf3 {[%emt 0:00:00]} b2 {[%emt 0:00:28]} 61. Ke2 {[%emt 0:00:00]} b1=Q {[%emt 0:00:24]} 62. Kf3 {[%emt 0:00:00]} Qb3+ {[%emt 0:00:13]} 63. Ke2 {[%emt 0:00:00]} Qd2+ {[%emt 0:00:09]} 64. Kf1 {[%emt 0:00:00]} Qb1# {[%emt 0:00:09]} 0-1

[Event "FIDE WCCC Open-10 2024"]
[Site "Montesilvano"]
[Date "2024.11.18"]
[Round "2.9"]
[White "Zhang, Junyi"]
[Black "Zhou, Guoyu"]
[Result "0-1"]
[ECO "C54"]
[WhiteElo "2061"]
[BlackElo "1809"]
[PlyCount "186"]
[EventDate "2024.11.18"]
[EventType "swiss"]
[EventCountry "ITA"]
[TimeControl "5400+30"]

1. e4 {[%emt 1:31:00]} e5 {[%emt 0:00:12]} 2. Nf3 {[%emt 0:00:00]} Nc6 {[%emt 0:00:16]} 3. Bc4 {[%emt 0:00:00]} Bc5 {[%emt 0:00:07]} 4. c3 {[%emt 0:00:00]} Nf6 {[%emt 0:00:23]} 5. d4 {[%emt 0:00:00]} exd4 {[%emt 0:00:11]} 6. e5 {[%emt 0:00:00]} d5 {[%emt 0:00:27]} 7. Bb5 {[%emt 0:03:00]} Ne4 {[%emt 1:32:24]} 8. cxd4 {[%emt 0:00:00]} Bb6 {[%emt 0:00:00]} 9. Nc3 {[%emt 0:00:00]} O-O {[%emt 0:00:00]} 10. Be3 {[%emt 0:00:00]} Bg4 {[%emt 0:00:00]} 11. h3 {[%emt 0:00:00]} Bh5 {[%emt 0:00:00]} 12. Qc2 {[%emt 0:00:00]} Nxc3 {[%emt 0:00:00]} 13. bxc3 {[%emt 0:00:00]} f6 {[%emt 0:00:00]} 14. exf6 {[%emt 0:00:00]} Qxf6 {[%emt 0:00:00]} 15. Be2 {[%emt 0:00:00]} Bg6 {[%emt 0:00:00]} 16. Bd3 {[%emt 0:00:00]} Bxd3 {[%emt 0:00:00]} 17. Qxd3 {[%emt 0:00:00]} Rae8 {[%emt 0:00:00]} 18. O-O {[%emt 0:00:00]} Qf5 {[%emt 0:05:30]} 19. Qxf5 {[%emt 0:00:00]} Rxf5 {[%emt 0:00:00]} 20. Rae1 {[%emt 0:00:00]} Rf6 {[%emt 0:00:00]} 21. Rb1 {[%emt 0:00:00]} Na5 {[%emt 0:00:00]} 22. Ne5 {[%emt 0:00:00]} c6 {[%emt 0:00:00]} 23. Rfe1 {[%emt 0:00:00]} Bc7 {[%emt 0:00:00]} 24. Nd3 {[%emt 0:00:00]} b6 {[%emt 0:00:00]} 25. Bg5 {[%emt 0:00:00]} Rfe6 {[%emt 0:00:00]} 26. Kf1 {[%emt 0:00:00]} Nc4 {[%emt 0:00:00]} 27. Rxe6 {[%emt 0:00:00]} Rxe6 {[%emt 0:00:00]} 28. Re1 {[%emt 0:00:00]} Kf7 {[%emt 0:00:00]} 29. Nb4 {[%emt 0:00:00]} Na5 {[%emt 0:00:00]} 30. Bc1 {[%emt 0:00:00]} Bd6 {[%emt 0:00:00]} 31. Nd3 {[%emt 0:00:00]} Nc4 {[%emt 0:00:00]} 32. f4 {[%emt 0:00:00]} b5 {[%emt 0:00:00]} 33. Ne5+ {[%emt 0:00:00]} Bxe5 {[%emt 0:07:30]} 34. dxe5 {[%emt 0:00:00]} g6 {[%emt 0:00:00]} 35. Be3 {[%emt 0:01:03]} a5 {[%emt 0:00:00]} 36. Ke2 {[%emt 0:02:35]} Re7 {[%emt 0:00:00]} 37. Bc5 {[%emt 0:00:36]} Rb7 {[%emt 0:00:00]} 38. Kd3 {[%emt 0:01:11]} Ke6 {[%emt 0:00:00]} 39. Bd4 {[%emt 0:02:26]} Nb2+ {[%emt 0:00:00]} 40. Kc2 {[%emt 0:01:22]} Nc4 {[%emt 0:00:00]} 41. Rf1 {[%emt 0:01:41]} Rf7 {[%emt 0:00:00]} 42. Rf2 {[%emt 0:02:16]} Rf8 {[%emt 0:00:00]} 43. g4 {[%emt 0:00:45]} Rf7 {[%emt 0:00:03]} 44. Kd1 {[%emt 0:00:49]} Na3 {[%emt 0:01:44]} 45. Ke1 {[%emt 0:00:45]} Nc4 {[%emt 0:01:33]} 46. Kf1 {[%emt 0:00:05]} b4 {[%emt 0:00:16]} 47. cxb4 {[%emt 0:00:12]} axb4 {[%emt 0:00:01]} 48. Kg2 {[%emt 0:00:26]} Na5 {[%emt 0:01:16]} 49. Bb6 {[%emt 0:02:38]} Nc4 {[%emt 0:00:20]} 50. Bc5 {[%emt 0:00:18]} Rb7 {[%emt 0:00:11]} 51. Bd4 {[%emt 0:00:04]} Rf7 {[%emt 0:00:20]} 52. Kg3 {[%emt 0:00:09]} Na5 {[%emt 0:00:28]} 53. Bb6 {[%emt 0:00:51]} Nc4 {[%emt 0:00:07]} 54. Bc5 {[%emt 0:00:08]} Rb7 {[%emt 0:00:19]} 55. Bd4 {[%emt 0:00:20]} Rf7 {[%emt 0:02:24]} 56. h4 {[%emt 0:01:00]} h5 {[%emt 0:00:50]} 57. Bc5 {[%emt 0:01:56]} Rb7 {[%emt 0:00:41]} 58. Bd4 {[%emt 0:00:41]} Rf7 {[%emt 0:00:08]} 59. Kg2 {[%emt 0:01:01]} Na5 {[%emt 0:01:04]} 60. Bc5 {[%emt 0:00:33]} b3 {[%emt 0:00:21]} 61. Bd4 {[%emt 0:00:25]} bxa2 {[%emt 0:00:21]} 62. Rxa2 {[%emt 0:00:38]} Rxf4 {[%emt 0:00:14]} 63. gxh5 {[%emt 0:00:26]} gxh5 {[%emt 0:00:07]} 64. Be3 {[%emt 0:00:03]} Rg4+ {[%emt 0:00:07]} 65. Kf3 {[%emt 0:00:04]} Nc4 {[%emt 0:00:05]} 66. Bg5 {[%emt 0:00:21]} Nxe5+ {[%emt 0:00:07]} 67. Kf2 {[%emt 0:00:03]} d4 {[%emt 0:00:22]} 68. Rd2 {[%emt 0:00:20]} Kd5 {[%emt 0:00:11]} 69. Rd1 {[%emt 0:00:28]} c5 {[%emt 0:00:05]} 70. Ke2 {[%emt 0:00:10]} Rg2+ {[%emt 0:00:12]} 71. Kf1 {[%emt 0:00:03]} Rh2 {[%emt 0:00:23]} 72. Bf4 {[%emt 0:00:23]} Rxh4 {[%emt 0:00:28]} 73. Bg3 {[%emt 0:00:08]} Rh1+ {[%emt 0:00:09]} 74. Ke2 {[%emt 0:00:03]} Rxd1 {[%emt 0:00:08]} 75. Kxd1 {[%emt 0:00:03]} Ke4 {[%emt 0:00:12]} 76. Ke2 {[%emt 0:00:07]} c4 {[%emt 0:00:10]} 77. Kd2 {[%emt 0:00:13]} Nf3+ {[%emt 0:00:07]} 78. Kd1 {[%emt 0:00:06]} h4 {[%emt 0:00:15]} 79. Bf2 {[%emt 0:00:06]} h3 {[%emt 0:00:16]} 80. Bg3 {[%emt 0:00:06]} h2 {[%emt 0:00:14]} 81. Bxh2 {[%emt 0:00:03]} Nxh2 {[%emt 0:00:05]} 82. Kd2 {[%emt 0:00:05]} c3+ {[%emt 0:00:22]} 83. Kc2 {[%emt 0:00:10]} Ke3 {[%emt 0:00:07]} 84. Kd1 {[%emt 0:00:04]} d3 {[%emt 0:00:10]} 85. Ke1 {[%emt 0:00:07]} Nf3+ {[%emt 0:00:14]} 86. Kd1 {[%emt 0:00:04]} c2+ {[%emt 0:00:23]} 87. Kc1 {[%emt 0:00:04]} Ke2 {[%emt 0:00:08]} 88. Kb2 {[%emt 0:00:05]} Kd2 {[%emt 0:00:08]} 89. Ka2 {[%emt 0:00:03]} c1=Q {[%emt 0:00:20]} 90. Kb3 {[%emt 0:00:03]} Nd4+ {[%emt 0:00:28]} 91. Kb4 {[%emt 0:00:06]} Qc3+ {[%emt 0:00:07]} 92. Ka4 {[%emt 0:00:04]} Qb3+ {[%emt 0:00:15]} 93. Ka5 {[%emt 0:00:02]} Qb5# {[%emt 0:00:09]} 0-1